bitfinex/quotes_BTCUSD_20230404
["timestamp","ask_amount","ask_price","bid_price","bid_amount"]
[1680581185936,0.00993101,27871.0,27870.0,1.13739684]
[1680581187055,0.00993101,27871.0,27870.0,1.30949507]
[1680581187279,0.00993101,27871.0,27870.0,1.13739684]
[1680581188178,0.00993101,27871.0,27870.0,0.95739684]
[1680581188620,0.00993101,27871.0,27870.0,1.12740907]
[1680581188844,0.00993101,27871.0,27870.0,0.95531084]
[1680581190705,0.00993101,27871.0,27870.0,0.95323284]
[1680581192841,0.00993101,27871.0,27870.0,0.57984837]
[1680581193061,0.39567673,27871.0,27870.0,0.24208489]
[1680581193282,0.39567673,27871.0,27870.0,0.24226489]
[1680581194378,0.39567673,27871.0,27870.0,0.23448273]
[1680581197325,0.39612544,27871.0,27870.0,0.41430273]
[1680581197549,0.39612544,27871.0,27870.0,0.83805066]
[1680581197767,0.39612544,27871.0,27870.0,0.83823066]
[1680581197768,0.39567673,27871.0,27870.0,0.83823066]
[1680581197996,0.00993101,27871.0,27870.0,0.83823066]
[1680581198213,0.00993101,27871.0,27870.0,0.88729866]
[1680581198439,0.00993101,27871.0,27870.0,0.83805066]
[1680581199205,0.00993101,27871.0,27870.0,0.75206708]
[1680581201613,0.00993101,27871.0,27870.0,1.09314574]
[1680581201852,0.00993101,27871.0,27870.0,1.14971025]
[1680581202524,0.00983707,27871.0,27870.0,1.14971025]
[1680581203195,0.00983707,27871.0,27870.0,0.99225495]
[1680581203425,0.02288,27873.0,27870.0,0.89137495]
[1680581203636,0.002,27871.0,27870.0,0.43186302]
[1680581203859,0.002,27871.0,27870.0,0.90635516]
[1680581204300,0.02288,27873.0,27870.0,0.88735516]
[1680581204521,0.02288,27873.0,27872.0,0.21494781]
[1680581204752,0.02288,27873.0,27872.0,1.14265766]
[1680581205187,0.02288,27873.0,27872.0,1.33258687]
[1680581205858,0.02488,27873.0,27872.0,1.33258687]
[1680581206089,0.02288,27873.0,27872.0,1.33258687]
[1680581206312,0.02388,27873.0,27872.0,1.34258687]
[1680581206774,0.02388,27873.0,27872.0,1.09139276]
[1680581207008,0.02388,27873.0,27872.0,0.91946258]
[1680581208584,0.02388,27873.0,27872.0,0.70451477]
[1680581209014,0.02388,27873.0,27872.0,0.59412117]
[1680581209245,0.02388,27873.0,27872.0,0.80890565]
[1680581209728,0.02388,27873.0,27872.0,1.17508784]
[1680581209964,0.02388,27873.0,27872.0,0.80890565]
[1680581211697,0.02388,27873.0,27872.0,0.59412117]
[1680581212554,0.02288,27873.0,27872.0,0.58412117]
[1680581212777,0.02388,27873.0,27872.0,1.06535254]
[1680581213247,0.02388,27873.0,27872.0,0.81382221]
[1680581213442,0.02288,27873.0,27872.0,0.79882221]
[1680581213659,0.02288,27873.0,27872.0,1.25269943]
[1680581213877,0.02288,27873.0,27872.0,1.25270037]
[1680581214596,0.02388,27873.0,27872.0,1.5455523]
[1680581215334,0.02388,27873.0,27872.0,1.18327215]
[1680581215773,0.02388,27873.0,27872.0,1.58607644]
[1680581216101,0.02388,27873.0,27872.0,1.18327215]
[1680581216516,0.02388,27873.0,27872.0,1.53581383]
[1680581216723,0.02388,27873.0,27872.0,1.18327215]
[1680581216931,0.02388,27873.0,27872.0,1.63183208]
[1680581220216,0.02211389,27873.0,27872.0,1.63183208]
[1680581221064,0.02035661,27873.0,27872.0,1.18327215]
[1680581222376,0.01860811,27873.0,27872.0,1.18327215]
[1680581223371,0.01686836,27873.0,27872.0,1.18327215]
[1680581224255,0.01686836,27873.0,27872.0,1.41483173]
[1680581224476,0.02288,27876.0,27873.0,0.67816498]
[1680581224694,0.02288,27876.0,27875.0,0.4634735]
[1680581224905,0.02288,27876.0,27875.0,0.93958764]
[1680581225354,0.02288,27876.0,27875.0,0.95676782]
[1680581225803,0.02288,27876.0,27875.0,0.78513515]
[1680581226482,0.02288,27876.0,27875.0,0.56103786]
[1680581226701,0.02288,27876.0,27875.0,1.00684415]
[1680581227105,0.01788,27876.0,27875.0,1.00684415]
[1680581228195,0.01634621,27876.0,27875.0,1.00684415]
[1680581229295,0.01482904,27876.0,27875.0,1.00684415]
[1680581229512,0.01482904,27876.0,27875.0,1.08414415]
[1680581230005,0.01482904,27876.0,27875.0,0.86960332]
[1680581230452,0.01332531,27876.0,27875.0,1.08393829]
[1680581231222,0.01167873,27876.0,27875.0,1.00663829]
[1680581232302,0.01004847,27876.0,27875.0,1.00663829]
[1680581232693,0.01004847,27876.0,27875.0,0.82727829]
[1680581233148,0.00843432,27876.0,27875.0,0.82727829]
[1680581233784,0.00843432,27876.0,27875.0,0.61294332]
[1680581234157,0.00683541,27876.0,27875.0,0.61294332]
[1680581234842,0.00683541,27876.0,27875.0,1.01563647]
[1680581235063,0.00683541,27876.0,27875.0,0.61294332]
[1680581235279,0.00525193,27876.0,27875.0,0.61294332]
[1680581235903,0.00525193,27876.0,27875.0,0.97665878]
[1680581236108,0.00367637,27876.0,27875.0,0.61294332]
[1680581237375,0.00210869,27876.0,27875.0,0.61294332]
[1680581238272,0.00054885,27876.0,27875.0,0.61294332]
[1680581239238,0.02288,27878.0,27875.0,0.61294332]
[1680581239455,0.02288,27878.0,27877.0,0.29985237]
[1680581239655,0.02288,27878.0,27877.0,0.77367051]
[1680581240108,0.02288,27878.0,27877.0,0.78765024]
[1680581241068,0.02288,27878.0,27877.0,0.68614208]
[1680581241587,0.02288,27878.0,27877.0,0.81465835]
[1680581241792,0.02288,27878.0,27877.0,1.15510112]
[1680581243250,0.02288,27878.0,27877.0,1.02658485]
[1680581244104,0.03183135,27880.0,27877.0,1.02658485]
[1680581244315,0.03228006,27880.0,27878.0,0.13607652]
[1680581244529,0.03228006,27880.0,27879.0,0.052982]
[1680581245236,0.03183135,27880.0,27879.0,0.052982]
[1680581245423,0.03183135,27880.0,27879.0,0.15402402]
[1680581246468,0.03183135,27880.0,27879.0,0.16802402]
[1680581247503,0.03183135,27880.0,27879.0,0.54149789]
[1680581247941,0.03183135,27880.0,27879.0,0.72149789]
[1680581251104,0.03183135,27880.0,27879.0,1.27359513]
[1680581252853,0.03183135,27880.0,27879.0,1.18790161]
[1680581257328,0.03183135,27880.0,27879.0,1.35924582]
[1680581259073,0.03183135,27880.0,27879.0,1.23070677]
[1680581262381,0.03183135,27880.0,27879.0,1.44488703]
[1680581262776,0.03183135,27880.0,27879.0,1.23070677]
[1680581263014,0.03183135,27880.0,27879.0,1.44488703]
[1680581263468,0.03183135,27880.0,27879.0,1.27354282]
[1680581264399,0.03173368,27880.0,27879.0,1.27354282]
[1680581265268,0.03173368,27880.0,27879.0,1.05936256]
[1680581265496,0.02278233,27880.0,27879.0,1.05936256]
[1680581266544,0.02278233,27880.0,27879.0,1.04536256]
[1680581266831,0.02278233,27880.0,27879.0,1.07336256]
[1680581274572,0.02278233,27880.0,27879.0,1.33087786]
[1680581275028,0.02278233,27880.0,27879.0,1.07336256]
[1680581275246,0.02278233,27880.0,27879.0,1.33087786]
[1680581276485,0.02278233,27880.0,27879.0,0.64690669]
[1680581276486,0.47974688,27880.0,27879.0,0.64690669]
[1680581276703,0.53638431,27880.0,27879.0,0.86214006]
[1680581276935,0.53638431,27880.0,27879.0,0.86196006]
[1680581277160,0.47974688,27880.0,27879.0,0.86196006]
[1680581277372,0.46539988,27880.0,27879.0,0.86196006]
[1680581277588,0.46539988,27880.0,27879.0,0.64690669]
[1680581277808,0.10770404,27880.0,27879.0,0.86195801]
[1680581278036,0.10725533,27880.0,27879.0,0.86195801]
[1680581278255,0.10770404,27880.0,27879.0,0.86195801]
[1680581278689,0.10770404,27880.0,27879.0,0.83395801]
[1680581278912,0.10770404,27880.0,27879.0,0.83495801]
[1680581280689,0.35155899,27880.0,27879.0,0.83495801]
[1680581280927,2.08864232,27880.0,27879.0,0.18212804]
[1680581281166,0.2,27877.0,27876.0,0.08602071]
[1680581281399,0.2,27873.0,27872.0,0.12905705]
[1680581281636,0.2,27870.0,27867.0,0.17202337]
[1680581281882,0.1539,27868.0,27867.0,0.17220337]
[1680581282118,0.31147281,27868.0,27867.0,0.15936684]
[1680581282357,0.31147281,27868.0,27866.0,0.63902855]
[1680581282358,0.54742471,27868.0,27866.0,0.21505132]
[1680581282586,0.45802152,27868.0,27866.0,0.21505132]
[1680581282827,0.318,27867.0,27865.0,0.21505132]
[1680581283024,0.659039,27866.0,27865.0,0.21505132]
[1680581283339,0.36798771,27866.0,27865.0,0.4238035]
[1680581283567,0.36798771,27866.0,27865.0,0.63893512]
[1680581283793,1.20051263,27866.0,27865.0,0.21513162]
[1680581284469,1.20351263,27866.0,27865.0,0.4258035]
[1680581285154,1.20351263,27866.0,27865.0,0.002]
[1680581286741,1.23881875,27866.0,27865.0,0.002]
[1680581288791,1.23881875,27866.0,27865.0,0.002]
[1680581290434,1.23881875,27866.0,27865.0,0.182]
[1680581290959,1.23901875,27866.0,27865.0,0.182]
[1680581292117,1.23901875,27866.0,27865.0,0.002]
[1680581294820,1.23813834,27866.0,27865.0,0.002]
[1680581296367,1.23855834,27866.0,27865.0,0.002]
[1680581296582,1.23813834,27866.0,27865.0,0.002]
[1680581298250,1.08433834,27866.0,27865.0,0.002]
[1680581298741,1.18433834,27866.0,27865.0,0.002]
[1680581301308,1.34043834,27866.0,27865.0,0.002]
[1680581304014,1.3492143,27866.0,27865.0,0.002]
[1680581307329,1.34966301,27866.0,27865.0,0.002]
[1680581307764,1.3492143,27866.0,27865.0,0.002]
[1680581309618,1.10502815,27866.0,27865.0,0.002]
[1680581309850,0.1,27865.0,27862.0,0.0208]
[1680581310060,0.0767,27863.0,27862.0,0.0208]
[1680581310279,0.412588,27863.0,27862.0,0.0208]
[1680581310480,0.421088,27863.0,27862.0,0.0208]
[1680581310920,0.421088,27863.0,27862.0,0.0228]
[1680581311262,0.421088,27863.0,27862.0,0.03842901]
[1680581311474,0.49486745,27863.0,27862.0,0.03842901]
[1680581311711,0.49486745,27863.0,27862.0,0.03642901]
[1680581311928,0.49886745,27863.0,27862.0,0.03842901]
[1680581312354,0.9059797,27863.0,27862.0,0.03842901]
[1680581317217,0.80348925,27863.0,27862.0,0.03842901]
[1680581317439,0.396377,27863.0,27862.0,0.03842901]
[1680581321608,0.396377,27863.0,27862.0,0.03860901]
[1680581321816,0.396377,27863.0,27862.0,0.03842901]
[1680581322959,0.396377,27863.0,27862.0,0.03860901]
[1680581323378,0.48044062,27863.0,27862.0,0.03860901]
[1680581323819,0.396377,27863.0,27862.0,0.03860901]
[1680581324465,0.396377,27863.0,27862.0,0.12417442]
[1680581325159,0.403738,27863.0,27862.0,0.12417442]
[1680581325826,0.304,27863.0,27862.0,0.329939]
[1680581326046,0.304,27863.0,27862.0,0.72161816]
[1680581326273,0.304,27863.0,27862.0,1.15295038]
[1680581326485,0.304,27863.0,27862.0,1.2821011]
[1680581326690,0.3,27863.0,27862.0,0.84876888]
[1680581326904,0.305,27863.0,27862.0,1.2137594]
[1680581327147,0.3,27863.0,27862.0,1.2137594]
[1680581327368,0.00762571,27865.0,27862.0,1.2147594]
[1680581327583,0.007177,27865.0,27863.0,0.42383657]
[1680581327976,0.007177,27865.0,27863.0,0.42401657]
[1680581328198,0.007177,27865.0,27864.0,0.01611231]
[1680581328480,0.007177,27865.0,27864.0,0.60572855]
[1680581329606,0.012177,27865.0,27864.0,0.60572855]
[1680581329821,0.007177,27865.0,27864.0,0.60572855]
[1680581330047,0.011177,27865.0,27864.0,0.60672855]
[1680581330275,0.007177,27865.0,27864.0,0.60572855]
[1680581330499,0.011177,27865.0,27864.0,0.60672855]
[1680581330722,0.007177,27865.0,27864.0,0.60572855]
[1680581330938,0.007177,27865.0,27864.0,0.60672855]
[1680581331159,0.011177,27865.0,27864.0,0.60672855]
[1680581331600,0.007177,27865.0,27864.0,0.60572855]
[1680581332514,0.011177,27865.0,27864.0,0.82184535]
[1680581332736,0.007177,27865.0,27864.0,0.82084535]
[1680581332954,0.011177,27865.0,27864.0,0.82184535]
[1680581333173,0.007177,27865.0,27864.0,0.82084535]
[1680581333396,0.011177,27865.0,27864.0,0.82184535]
[1680581333615,0.011177,27865.0,27864.0,0.82085208]
[1680581333853,0.007177,27865.0,27864.0,0.82085208]
[1680581334077,0.011177,27865.0,27864.0,0.82185208]
[1680581337018,0.004,27865.0,27864.0,0.82203208]
[1680581337227,0.011177,27865.0,27864.0,0.87262608]
[1680581337461,0.004,27865.0,27864.0,0.87262608]
[1680581337691,0.011177,27865.0,27864.0,0.82203208]
[1680581337906,0.011177,27865.0,27864.0,0.87518308]
[1680581338338,0.0107453,27865.0,27864.0,0.87302908]
[1680581338559,0.0107453,27865.0,27864.0,0.82203208]
[1680581339219,0.0035683,27865.0,27864.0,0.82203208]
[1680581341423,0.0035683,27865.0,27864.0,0.95236008]
[1680581341643,0.0107453,27865.0,27864.0,0.95236008]
[1680581341856,0.0107453,27865.0,27864.0,0.89943208]
[1680581347319,0.0035683,27865.0,27864.0,0.73527455]
[1680581347613,0.0035683,27865.0,27864.0,0.57017988]
[1680581347841,0.0035683,27865.0,27864.0,0.06894331]
[1680581348073,0.0035683,27865.0,27864.0,0.95977144]
[1680581348295,0.00877596,27866.0,27864.0,0.97277144]
[1680581348515,0.00877596,27866.0,27865.0,0.69044853]
[1680581348740,0.00877596,27866.0,27865.0,0.69062853]
[1680581349431,0.00877596,27866.0,27865.0,0.85586603]
[1680581349646,0.00877596,27866.0,27865.0,0.97494416]
[1680581349868,0.00877596,27866.0,27865.0,0.97476416]
[1680581350086,0.00877596,27866.0,27865.0,0.85586603]
[1680581350309,0.01277596,27866.0,27865.0,0.85686603]
[1680581351437,0.01277596,27866.0,27865.0,0.93396603]
[1680581352810,0.00877596,27866.0,27865.0,0.93296603]
[1680581353016,0.01277596,27866.0,27865.0,0.93296603]
[1680581353626,0.01277596,27866.0,27865.0,1.10492869]
[1680581354184,0.00877596,27866.0,27865.0,1.10492869]
[1680581354412,0.01277596,27866.0,27865.0,1.10492869]
[1680581354635,0.01277596,27866.0,27865.0,0.93296603]
[1680581356695,0.01277596,27866.0,27865.0,0.93278603]
[1680581356952,0.01277596,27866.0,27865.0,0.93296603]
[1680581357198,0.01277596,27866.0,27865.0,0.88138603]
[1680581358352,0.01277596,27866.0,27865.0,0.93463203]
[1680581358572,0.01277596,27866.0,27865.0,0.85753203]
[1680581359672,0.01277596,27866.0,27865.0,0.80428603]
[1680581360329,0.01266091,27866.0,27865.0,0.80410603]
[1680581362380,0.01266091,27866.0,27865.0,0.85834903]
[1680581362598,0.01266091,27866.0,27865.0,0.80410603]
[1680581372818,0.004,27866.0,27865.0,0.80933874]
[1680581373040,0.004,27866.0,27865.0,0.88673874]
[1680581373376,0.004,27866.0,27865.0,1.27828738]
[1680581373433,0.004,27866.0,27865.0,1.27846738]
[1680581373607,0.004,27866.0,27865.0,1.53640752]
[1680581374213,0.3815726,27871.0,27866.0,0.1]
[1680581374448,0.3815726,27871.0,27870.0,0.08598044]
[1680581374610,0.38202131,27871.0,27870.0,0.2149511]
[1680581375749,0.38602131,27871.0,27870.0,0.08798044]
[1680581375955,0.37884531,27871.0,27870.0,0.08798044]
[1680581376171,0.00444871,27871.0,27870.0,0.08798044]
[1680581376391,0.004,27871.0,27870.0,0.08798044]
[1680581377512,0.004,27871.0,27870.0,0.2169511]
[1680581377723,0.004,27871.0,27870.0,0.23735488]
[1680581377942,0.011175,27871.0,27870.0,0.23735488]
[1680581381993,0.01109475,27871.0,27870.0,0.23735488]
[1680581382435,0.007175,27871.0,27870.0,0.23535488]
[1680581382650,0.011175,27871.0,27870.0,0.23635488]
[1680581385400,0.004,27871.0,27870.0,0.48241157]
[1680581385645,0.004,27871.0,27870.0,0.52540061]
[1680581385850,0.004,27871.0,27870.0,0.70552975]
[1680581386168,0.004,27871.0,27870.0,0.80552975]
[1680581386413,0.40740059,27879.0,27870.0,0.80452975]
[1680581386630,0.40740059,27879.0,27874.0,0.21466965]
[1680581387760,0.41616266,27879.0,27874.0,0.08586786]
[1680581388001,0.41616166,27879.0,27874.0,0.09386786]
[1680581388431,0.41616166,27879.0,27875.0,0.42572736]
[1680581389602,0.41616166,27879.0,27875.0,0.42672736]
[1680581389823,0.41616166,27879.0,27875.0,0.47028586]
[1680581390271,0.40898866,27879.0,27875.0,0.47028586]
[1680581391635,0.40898866,27879.0,27876.0,0.13335773]
[1680581392098,0.41616166,27879.0,27876.0,0.13335773]
[1680581392557,0.42016166,27879.0,27876.0,0.13335773]
[1680581392779,0.41298866,27879.0,27876.0,0.13335773]
[1680581392998,0.42016166,27879.0,27876.0,0.13335773]
[1680581393211,0.41298866,27879.0,27876.0,0.15872735]
[1680581393431,0.41616166,27879.0,27876.0,0.15872735]
[1680581393642,0.41616166,27879.0,27876.0,0.16672735]
[1680581393856,0.41616166,27879.0,27876.0,0.15872735]
[1680581394263,0.41616166,27879.0,27876.0,0.16672735]
[1680581396223,0.41616166,27879.0,27876.0,0.14135773]
[1680581396614,0.40898866,27879.0,27877.0,0.33699872]
[1680581397824,0.40898866,27879.0,27877.0,0.001]
[1680581398915,0.40898866,27879.0,27876.0,0.39924492]
[1680581399138,0.40898866,27879.0,27877.0,0.001]
[1680581400172,0.40898866,27879.0,27876.0,0.39924492]
[1680581400377,0.40898866,27879.0,27878.0,0.01769884]
[1680581400592,0.70898866,27879.0,27878.0,0.01769884]
[1680581401241,0.70898866,27879.0,27877.0,0.14031322]
[1680581401676,0.70898866,27879.0,27877.0,0.13931322]
[1680581401895,0.71298866,27879.0,27877.0,0.13931322]
[1680581402117,0.70898866,27879.0,27877.0,0.13931322]
[1680581402330,0.70898866,27879.0,27878.0,0.054434]
[1680581402552,0.70898866,27879.0,27877.0,0.14031322]
[1680581402789,0.70898866,27879.0,27877.0,0.13931322]
[1680581403205,0.70898866,27879.0,27877.0,0.14731322]
[1680581403433,0.70898866,27879.0,27877.0,0.13931322]
[1680581403648,0.70898866,27879.0,27877.0,0.14731322]
[1680581404366,0.70888408,27879.0,27877.0,0.14731322]
[1680581404596,0.70843537,27879.0,27877.0,0.14731322]
[1680581408158,0.70843537,27879.0,27877.0,0.14718732]
[1680581408380,0.70888408,27879.0,27877.0,0.14718732]
[1680581409032,0.70888408,27879.0,27877.0,0.008]
[1680581409254,0.70843537,27879.0,27877.0,0.008]
[1680581409473,0.70888408,27879.0,27877.0,0.008]
[1680581409907,0.70888408,27879.0,27877.0,0.30988656]
[1680581410129,0.70888408,27879.0,27878.0,0.051143]
[1680581410585,0.70888408,27879.0,27877.0,0.30988656]
[1680581411017,0.70888408,27879.0,27877.0,0.30188656]
[1680581411238,0.70888408,27879.0,27878.0,0.001]
[1680581411520,0.70888408,27879.0,27877.0,0.30188656]
[1680581411745,0.70888408,27879.0,27878.0,0.052631]
[1680581411960,0.30921078,27879.0,27878.0,0.052631]
[1680581412393,0.30921078,27879.0,27877.0,0.30988656]
[1680581413288,0.30921078,27879.0,27877.0,0.30188656]
[1680581413511,0.30921078,27879.0,27878.0,0.001]
[1680581413742,0.30921078,27879.0,27877.0,0.30188656]
[1680581413994,0.30921078,27879.0,27877.0,0.30988656]
[1680581414204,0.30921078,27879.0,27878.0,0.050695]
[1680581414434,0.30921078,27879.0,27878.0,0.001]
[1680581414642,0.30921078,27879.0,27877.0,0.30188656]
[1680581414861,0.30921078,27879.0,27877.0,0.30988656]
[1680581415086,0.30921078,27879.0,27878.0,0.049813]
[1680581415538,0.30921078,27879.0,27877.0,0.30988656]
[1680581416182,0.30921078,27879.0,27878.0,0.049576]
[1680581416665,0.30921078,27879.0,27877.0,0.34061322]
[1680581416887,0.30921078,27879.0,27878.0,0.052579]
[1680581417106,0.00921078,27879.0,27878.0,0.31051829]
[1680581417324,0.00876207,27879.0,27878.0,0.31051829]
[1680581417535,0.00876207,27879.0,27878.0,0.34646079]
[1680581422365,0.00876207,27879.0,27878.0,0.31151829]
[1680581424632,0.00876207,27879.0,27878.0,0.001]
[1680581424633,0.46134411,27879.0,27878.0,0.001]
[1680581424898,0.45417111,27879.0,27878.0,0.001]
[1680581428608,0.45417111,27879.0,27878.0,0.051913]
[1680581428801,0.45417111,27879.0,27878.0,0.001]
[1680581429713,0.45417111,27879.0,27878.0,0.21566965]
[1680581429924,0.45461982,27879.0,27878.0,0.26696565]
[1680581430564,0.45461982,27879.0,27878.0,0.21566965]
[1680581430825,0.44468258,27879.0,27878.0,0.08686786]
[1680581431070,0.44423387,27879.0,27878.0,0.08686786]
[1680581431275,0.52163387,27879.0,27878.0,0.08686786]
[1680581431920,0.52208258,27879.0,27878.0,0.08686786]
[1680581432140,0.52208258,27879.0,27878.0,0.08586786]
[1680581432350,0.52608258,27879.0,27878.0,0.08586786]
[1680581432568,0.46988507,27879.0,27878.0,0.08586786]
[1680581433645,0.46588507,27879.0,27878.0,0.08586786]
[1680581433878,0.46988507,27879.0,27878.0,0.08586786]
[1680581434093,0.46588507,27879.0,27878.0,0.08586786]
[1680581434307,0.46988507,27879.0,27878.0,0.08786786]
[1680581437696,0.46588507,27879.0,27878.0,0.08586786]
[1680581437918,0.46988507,27879.0,27878.0,0.08786786]
[1680581443522,0.46988507,27879.0,27878.0,0.21666965]
[1680581443723,0.46988507,27879.0,27878.0,0.08786786]
[1680581444558,0.46988507,27879.0,27878.0,0.08779225]
[1680581446237,0.53058651,27879.0,27878.0,0.08779225]
[1680581446896,0.46988507,27879.0,27878.0,0.08779225]
[1680581448696,0.39248507,27879.0,27878.0,0.08779225]
[1680581451248,0.46988507,27879.0,27878.0,0.08779225]
[1680581457153,0.48423207,27879.0,27878.0,0.08779225]
[1680581461228,0.46988507,27879.0,27878.0,0.08779225]
[1680581461446,0.46988507,27879.0,27878.0,0.14154925]
[1680581462106,0.09061078,27879.0,27878.0,0.14154925]
[1680581462318,0.09016207,27879.0,27878.0,0.14154925]
[1680581462540,0.09016207,27879.0,27878.0,0.08779225]
[1680581462965,0.09016207,27879.0,27878.0,0.08579225]
[1680581463174,0.08616207,27879.0,27878.0,0.08579225]
[1680581463382,0.08616207,27879.0,27878.0,0.08679225]
[1680581463595,0.08616207,27879.0,27878.0,0.08579225]
[1680581463807,0.09016207,27879.0,27878.0,0.08679225]
[1680581464024,0.09016207,27879.0,27878.0,0.08579225]
[1680581464264,0.08616207,27879.0,27878.0,0.08579225]
[1680581464479,0.09016207,27879.0,27878.0,0.08779225]
[1680581466084,0.09016207,27879.0,27878.0,0.21659404]
[1680581466318,0.09016207,27879.0,27878.0,0.5544279]
[1680581466544,0.09016207,27879.0,27878.0,0.6063139]
[1680581466754,0.09016207,27879.0,27878.0,0.64045194]
[1680581466941,0.09016207,27879.0,27878.0,0.69169994]
[1680581468268,0.09016207,27879.0,27878.0,0.6056759]
[1680581468713,0.09016207,27879.0,27878.0,0.6062049]
[1680581468967,0.09016207,27879.0,27878.0,0.5544279]
[1680581469188,0.09733507,27879.0,27878.0,0.5544279]
[1680581469612,0.42093727,27879.0,27878.0,0.21683361]
[1680581469832,0.42138598,27879.0,27878.0,0.21683361]
[1680581470299,0.42138598,27879.0,27878.0,0.13080179]
[1680581470738,0.42138598,27879.0,27878.0,0.55443103]
[1680581471328,0.34398598,27879.0,27878.0,0.55443103]
[1680581472144,0.33998598,27879.0,27878.0,0.55243103]
[1680581472503,0.34398598,27879.0,27878.0,0.55343103]
[1680581472721,0.33998598,27879.0,27878.0,0.55243103]
[1680581473349,0.34398598,27879.0,27878.0,0.55343103]
[1680581475499,0.004,27879.0,27878.0,1.00852348]
[1680581475738,0.004,27879.0,27878.0,1.00834348]
[1680581475972,0.02278233,27880.0,27878.0,1.00734348]
[1680581476183,0.02278233,27880.0,27879.0,0.47749124]
[1680581476438,0.02278233,27880.0,27879.0,0.51705766]
[1680581477566,0.02278233,27880.0,27879.0,0.73197727]
[1680581477774,0.02278233,27880.0,27879.0,0.73997727]
[1680581478485,0.02278233,27880.0,27879.0,0.9252023]
[1680581480253,0.02278233,27880.0,27879.0,1.09708184]
[1680581481152,0.02278233,27880.0,27879.0,0.87229039]
[1680581481368,0.44711407,27880.0,27879.0,0.73258703]
[1680581481607,0.44711407,27880.0,27879.0,0.56070749]
[1680581481884,0.45428707,27880.0,27879.0,0.56070749]
[1680581482103,0.92417852,27880.0,27879.0,0.00818]
[1680581482330,0.92417852,27880.0,27879.0,0.008]
[1680581482547,0.93141752,27880.0,27879.0,0.008]
[1680581482769,0.87847741,27880.0,27879.0,0.008]
[1680581483007,0.97847741,27880.0,27879.0,0.008]
[1680581483463,0.97847741,27880.0,27878.0,0.0859346]
[1680581483689,0.97847741,27880.0,27877.0,0.21501285]
[1680581483908,0.97847741,27880.0,27879.0,0.001]
[1680581484124,0.97123841,27880.0,27877.0,0.21483285]
[1680581484342,0.007174,27878.0,27877.0,0.21483285]
[1680581484579,0.007174,27878.0,27877.0,0.21495285]
[1680581484799,0.007174,27878.0,27877.0,0.21595285]
[1680581485011,0.007174,27878.0,27877.0,0.21495285]
[1680581485940,0.012174,27878.0,27877.0,0.21595285]
[1680581486374,0.4467472,27878.0,27877.0,0.21595285]
[1680581486598,0.4467472,27878.0,27877.0,0.21601285]
[1680581486817,0.44664444,27878.0,27877.0,0.21595285]
[1680581489377,0.4395732,27878.0,27877.0,0.3168674]
[1680581489601,0.4395732,27878.0,27877.0,0.3169274]
[1680581489602,0.00456827,27878.0,27877.0,0.3169274]
[1680581489824,0.00456827,27878.0,27877.0,0.3167474]
[1680581491886,0.00456827,27878.0,27877.0,0.21583285]
[1680581492315,0.47410526,27879.0,27877.0,0.21483285]
[1680581492521,0.005,27878.0,27877.0,0.21483285]
[1680581493419,0.005,27878.0,27877.0,0.63846171]
[1680581493872,0.005,27878.0,27877.0,0.21483285]
[1680581498166,0.46693126,27879.0,27877.0,0.21483285]
[1680581498565,0.005,27878.0,27877.0,0.21483285]
[1680581498765,0.46693126,27879.0,27877.0,0.21483285]
[1680581499035,0.47193126,27879.0,27877.0,0.21483285]
[1680581499166,0.46693126,27879.0,27877.0,0.21483285]
[1680581499595,0.005,27878.0,27877.0,0.21483285]
[1680581500278,0.005,27878.0,27877.0,0.63846195]
[1680581500528,0.46737997,27879.0,27877.0,0.63846184]
[1680581501034,0.47955297,27879.0,27877.0,0.21483285]
[1680581501146,0.007507,27878.0,27877.0,0.21483285]
[1680581501350,0.47910426,27879.0,27877.0,0.21483285]
[1680581502197,0.35405374,27878.0,27877.0,0.0859346]
[1680581502437,0.35450245,27878.0,27877.0,0.08583413]
[1680581502886,0.35450245,27878.0,27877.0,0.21473238]
[1680581503522,0.35950245,27878.0,27877.0,0.21473238]
[1680581506198,0.35950245,27878.0,27877.0,0.63836498]
[1680581506408,0.35950245,27878.0,27877.0,0.55253085]
[1680581508349,0.36667645,27878.0,27877.0,0.55253085]
[1680581508927,0.37394845,27878.0,27877.0,0.55253085]
[1680581509361,0.36667645,27878.0,27877.0,0.55253085]
[1680581510504,0.37413745,27878.0,27877.0,0.55253085]
[1680581510903,0.36667645,27878.0,27877.0,0.55253085]
[1680581512705,0.43562233,27878.0,27877.0,0.55253085]
[1680581512914,0.36667645,27878.0,27877.0,0.63848727]
[1680581513132,0.36667645,27878.0,27877.0,0.21485467]
[1680581513358,0.005,27878.0,27877.0,1.2216354]
[1680581513580,0.005,27878.0,27877.0,2.00603275]
[1680581513806,0.00019856,27878.0,27877.0,1.7481354]
[1680581514260,0.00019856,27878.0,27877.0,1.9274854]
[1680581514485,0.02278233,27880.0,27878.0,0.1]
[1680581514719,0.02278233,27880.0,27879.0,1.24430363]
[1680581514941,0.02278233,27880.0,27879.0,1.15867981]
[1680581515376,0.02278233,27880.0,27879.0,0.81541684]
[1680581515812,0.02278233,27880.0,27879.0,1.22392909]
[1680581516308,0.02278233,27880.0,27879.0,0.84341684]
[1680581516523,0.02278233,27880.0,27879.0,1.19553446]
[1680581523292,0.02278233,27880.0,27879.0,1.41008737]
[1680581524346,0.02278233,27880.0,27879.0,1.04362275]
[1680581524565,0.02323104,27880.0,27879.0,0.68901739]
[1680581524783,0.02323104,27880.0,27879.0,0.67448839]
[1680581525000,0.02323104,27880.0,27879.0,0.86902847]
[1680581525208,0.02323104,27880.0,27879.0,0.86908847]
[1680581525437,0.02323104,27880.0,27879.0,0.86902847]
[1680581525658,0.02323104,27880.0,27879.0,0.81791747]
[1680581525876,0.02323104,27880.0,27879.0,0.86829747]
[1680581526090,0.02323104,27880.0,27879.0,0.81791747]
[1680581526345,0.02323104,27880.0,27879.0,0.81785747]
[1680581526515,0.02323104,27880.0,27879.0,0.81773747]
[1680581527365,0.02323104,27880.0,27879.0,0.69653392]
[1680581527583,0.02323104,27880.0,27879.0,0.64611292]
[1680581527990,0.02323104,27880.0,27879.0,0.64623292]
[1680581528290,0.02323104,27880.0,27879.0,0.64617292]
[1680581528501,0.02323104,27880.0,27879.0,0.69905892]
[1680581528713,0.02323104,27880.0,27879.0,0.94095898]
[1680581528921,0.02278233,27880.0,27879.0,1.06954439]
[1680581529124,0.02278233,27880.0,27879.0,1.06966439]
[1680581529334,0.02278233,27880.0,27879.0,1.07020039]
[1680581529478,0.02278233,27880.0,27879.0,1.03225239]
[1680581529691,0.02278233,27880.0,27879.0,1.01796539]
[1680581529893,0.02278233,27880.0,27879.0,1.06945839]
[1680581530092,0.02278233,27880.0,27879.0,1.06933839]
[1680581530409,0.02278233,27880.0,27879.0,1.06927839]